{"text_format":"1","workbook":"xlsx","n_sheets":2,"sheets":["Dữ liệu đầu vào Bảng lương","stubs_template"],"not_rendered":{"charts":0,"images":0,"macros":1,"external_links":0,"defined_names":7,"comments":0,"pivot_tables":0},"unopened":[],"bounds":{"document_bytes":16777216,"sheet_cells":100000,"rows_first":2000,"rows_last":500,"rows_between":2000,"halvings":0,"cell_chars":16384,"cell_head_chars":4096},"cells_cut":0,"cells_raw":0,"read":"whole","date_system":"1900"}

{"sheet":"Dữ liệu đầu vào Bảng lương","index":0,"n_rows":13,"n_cols":24,"rows_kept":13,"cut":false,"hidden":false,"merged":[]}
[null,"CÔNG CỤ TÍNH LƯƠNG",null,null,null,null,null,null,null,null,"KẾT THÚC GIAI ĐOẠN:",41372,null,"TÊN CÔNG TY:",null,"CÔNG VIỆC MẠO HIÊM"]
[]
[null,"ID","Tên Nhân viên","Số Giờ Làm việc Thường xuyên","Số giờ Nghỉ phép","Số giờ Nghỉ bệnh","Số giờ Làm ngoài giờ","Mức phí Làm ngoài giờ","Lương Gộp","Thuế và Khấu trừ","Các Khấu trừ khác","Lương Thực nhận"," ","Lương theo Giờ","Tình trạng Thuế","Phụ cấp Liên bang","Thuế Tiểu bang","Thuế Thu nhập Liên bang","Thuế An sinh Xã hội","Thuế Chăm sóc sức khỏe","Tổng số Tiền thuế giữ lại","Khấu trừ Bảo hiểm","Khấu trừ Thường xuyên Khác","Tổng Khấu trừ Thường xuyên"]
[null,1001,"Tony Smith",104000,5,1,null,null,{"$f":"SUM(Employees[[#This Row],[Số Giờ Làm việc Thường xuyên]:[Số giờ Nghỉ bệnh]])*Employees[[#This Row],[Lương theo Giờ]]+Employees[[#This Row],[Số giờ Làm ngoài giờ]]*Employees[[#This Row],[Mức phí Làm ngoài giờ]]","v":2163324800},{"$f":"Employees[[#This Row],[Lương Gộp]]*Employees[[#This Row],[Tổng số Tiền thuế giữ lại]] + Employees[[#This Row],[Tổng Khấu trừ Thường xuyên]]","v":823269886.4000001},41600,{"$f":"Employees[[#This Row],[Lương Gộp]]-Employees[[#This Row],[Thuế và Khấu trừ]]-Employees[[#This Row],[Các Khấu trừ khác]]","v":1340013313.5999999},null,20800,1,4,2.3E-2,0.28000000000000003,6.3E-2,1.4500000000000001E-2,{"$f":"SUM(Employees[[#This Row],[Thuế Tiểu bang]:[Thuế Chăm sóc sức khỏe]])","v":0.38050000000000006},41600,83200,{"$f":"SUM(Employees[[#This Row],[Khấu trừ Bảo hiểm]:[Khấu trừ Thường xuyên Khác]])","v":124800}]
[null,1002,"David Jones",83200,null,null,null,null,{"$f":"SUM(Employees[[#This Row],[Số Giờ Làm việc Thường xuyên]:[Số giờ Nghỉ bệnh]])*Employees[[#This Row],[Lương theo Giờ]]+Employees[[#This Row],[Số giờ Làm ngoài giờ]]*Employees[[#This Row],[Mức phí Làm ngoài giờ]]","v":1384448000},{"$f":"Employees[[#This Row],[Lương Gộp]]*Employees[[#This Row],[Tổng số Tiền thuế giữ lại]] + Employees[[#This Row],[Tổng Khấu trừ Thường xuyên]]","v":526803264.00000006},null,{"$f":"Employees[[#This Row],[Lương Gộp]]-Employees[[#This Row],[Thuế và Khấu trừ]]-Employees[[#This Row],[Các Khấu trừ khác]]","v":857644736},null,16640,1,1,2.3E-2,0.28000000000000003,6.3E-2,1.4500000000000001E-2,{"$f":"SUM(Employees[[#This Row],[Thuế Tiểu bang]:[Thuế Chăm sóc sức khỏe]])","v":0.38050000000000006},null,20800,{"$f":"SUM(Employees[[#This Row],[Khấu trừ Bảo hiểm]:[Khấu trừ Thường xuyên Khác]])","v":20800}]
[null,1003,"Denise Smith",72800,3,null,null,null,{"$f":"SUM(Employees[[#This Row],[Số Giờ Làm việc Thường xuyên]:[Số giờ Nghỉ bệnh]])*Employees[[#This Row],[Lương theo Giờ]]+Employees[[#This Row],[Số giờ Làm ngoài giờ]]*Employees[[#This Row],[Mức phí Làm ngoài giờ]]","v":2120023360},{"$f":"Employees[[#This Row],[Lương Gộp]]*Employees[[#This Row],[Tổng số Tiền thuế giữ lại]] + Employees[[#This Row],[Tổng Khấu trừ Thường xuyên]]","v":806747928.48000014},null,{"$f":"Employees[[#This Row],[Lương Gộp]]-Employees[[#This Row],[Thuế và Khấu trừ]]-Employees[[#This Row],[Các Khấu trừ khác]]","v":1313275431.52},null,29120,1,3,2.3E-2,0.28000000000000003,6.3E-2,1.4500000000000001E-2,{"$f":"SUM(Employees[[#This Row],[Thuế Tiểu bang]:[Thuế Chăm sóc sức khỏe]])","v":0.38050000000000006},37440,41600,{"$f":"SUM(Employees[[#This Row],[Khấu trừ Bảo hiểm]:[Khấu trừ Thường xuyên Khác]])","v":79040}]
[null,1008,"Sebastien Motte",104000,5,1,null,null,{"$f":"SUM(Employees[[#This Row],[Số Giờ Làm việc Thường xuyên]:[Số giờ Nghỉ bệnh]])*Employees[[#This Row],[Lương theo Giờ]]+Employees[[#This Row],[Số giờ Làm ngoài giờ]]*Employees[[#This Row],[Mức phí Làm ngoài giờ]]","v":4326649600},{"$f":"Employees[[#This Row],[Lương Gộp]]*Employees[[#This Row],[Tổng số Tiền thuế giữ lại]] + Employees[[#This Row],[Tổng Khấu trừ Thường xuyên]]","v":1646321372.8000002},null,{"$f":"Employees[[#This Row],[Lương Gộp]]-Employees[[#This Row],[Thuế và Khấu trừ]]-Employees[[#This Row],[Các Khấu trừ khác]]","v":2680328227.1999998},null,41600,1,0,2.3E-2,0.28000000000000003,6.3E-2,1.4500000000000001E-2,{"$f":"SUM(Employees[[#This Row],[Thuế Tiểu bang]:[Thuế Chăm sóc sức khỏe]])","v":0.38050000000000006},31200,null,{"$f":"SUM(Employees[[#This Row],[Khấu trừ Bảo hiểm]:[Khấu trừ Thường xuyên Khác]])","v":31200}]
[null,1011,"Isabelle Scemla",83200,null,null,2,31200,{"$f":"SUM(Employees[[#This Row],[Số Giờ Làm việc Thường xuyên]:[Số giờ Nghỉ bệnh]])*Employees[[#This Row],[Lương theo Giờ]]+Employees[[#This Row],[Số giờ Làm ngoài giờ]]*Employees[[#This Row],[Mức phí Làm ngoài giờ]]","v":1730622400},{"$f":"Employees[[#This Row],[Lương Gộp]]*Employees[[#This Row],[Tổng số Tiền thuế giữ lại]] + Employees[[#This Row],[Tổng Khấu trừ Thường xuyên]]","v":658626623.20000005},null,{"$f":"Employees[[#This Row],[Lương Gộp]]-Employees[[#This Row],[Thuế và Khấu trừ]]-Employees[[#This Row],[Các Khấu trừ khác]]","v":1071995776.8},null,20800,1,0,2.3E-2,0.28000000000000003,6.3E-2,1.4500000000000001E-2,{"$f":"SUM(Employees[[#This Row],[Thuế Tiểu bang]:[Thuế Chăm sóc sức khỏe]])","v":0.38050000000000006},41600,83200,{"$f":"SUM(Employees[[#This Row],[Khấu trừ Bảo hiểm]:[Khấu trừ Thường xuyên Khác]])","v":124800}]
[null,1012,"David Bristol",83200,5,1,null,null,{"$f":"SUM(Employees[[#This Row],[Số Giờ Làm việc Thường xuyên]:[Số giờ Nghỉ bệnh]])*Employees[[#This Row],[Lương theo Giờ]]+Employees[[#This Row],[Số giờ Làm ngoài giờ]]*Employees[[#This Row],[Mức phí Làm ngoài giờ]]","v":2076821760},{"$f":"Employees[[#This Row],[Lương Gộp]]*Employees[[#This Row],[Tổng số Tiền thuế giữ lại]] + Employees[[#This Row],[Tổng Khấu trừ Thường xuyên]]","v":790355479.68000007},null,{"$f":"Employees[[#This Row],[Lương Gộp]]-Employees[[#This Row],[Thuế và Khấu trừ]]-Employees[[#This Row],[Các Khấu trừ khác]]","v":1286466280.3199999},null,24960,1,4,2.3E-2,0.28000000000000003,6.3E-2,1.4500000000000001E-2,{"$f":"SUM(Employees[[#This Row],[Thuế Tiểu bang]:[Thuế Chăm sóc sức khỏe]])","v":0.38050000000000006},41600,83200,{"$f":"SUM(Employees[[#This Row],[Khấu trừ Bảo hiểm]:[Khấu trừ Thường xuyên Khác]])","v":124800}]
[null,1025,"Anne Weiler",74880,null,2,1,37440,{"$f":"SUM(Employees[[#This Row],[Số Giờ Làm việc Thường xuyên]:[Số giờ Nghỉ bệnh]])*Employees[[#This Row],[Lương theo Giờ]]+Employees[[#This Row],[Số giờ Làm ngoài giờ]]*Employees[[#This Row],[Mức phí Làm ngoài giờ]]","v":1869092160},{"$f":"Employees[[#This Row],[Lương Gộp]]*Employees[[#This Row],[Tổng số Tiền thuế giữ lại]] + Employees[[#This Row],[Tổng Khấu trừ Thường xuyên]]","v":711283166.88000011},52000,{"$f":"Employees[[#This Row],[Lương Gộp]]-Employees[[#This Row],[Thuế và Khấu trừ]]-Employees[[#This Row],[Các Khấu trừ khác]]","v":1157756993.1199999},null,24960,1,2,2.3E-2,0.28000000000000003,6.3E-2,1.4500000000000001E-2,{"$f":"SUM(Employees[[#This Row],[Thuế Tiểu bang]:[Thuế Chăm sóc sức khỏe]])","v":0.38050000000000006},52000,41600,{"$f":"SUM(Employees[[#This Row],[Khấu trừ Bảo hiểm]:[Khấu trừ Thường xuyên Khác]])","v":93600}]
[null,1032,"Luka Abrus",83200,5,1,null,null,{"$f":"SUM(Employees[[#This Row],[Số Giờ Làm việc Thường xuyên]:[Số giờ Nghỉ bệnh]])*Employees[[#This Row],[Lương theo Giờ]]+Employees[[#This Row],[Số giờ Làm ngoài giờ]]*Employees[[#This Row],[Mức phí Làm ngoài giờ]]","v":1730684800},{"$f":"Employees[[#This Row],[Lương Gộp]]*Employees[[#This Row],[Tổng số Tiền thuế giữ lại]] + Employees[[#This Row],[Tổng Khấu trừ Thường xuyên]]","v":658525566.4000001},104000,{"$f":"Employees[[#This Row],[Lương Gộp]]-Employees[[#This Row],[Thuế và Khấu trừ]]-Employees[[#This Row],[Các Khấu trừ khác]]","v":1072055233.5999999},null,20800,1,3,2.3E-2,0.28000000000000003,6.3E-2,1.4500000000000001E-2,{"$f":"SUM(Employees[[#This Row],[Thuế Tiểu bang]:[Thuế Chăm sóc sức khỏe]])","v":0.38050000000000006},null,null,{"$f":"SUM(Employees[[#This Row],[Khấu trừ Bảo hiểm]:[Khấu trừ Thường xuyên Khác]])","v":0}]
[null,1049,"David Ludwig",83200,1,null,null,null,{"$f":"SUM(Employees[[#This Row],[Số Giờ Làm việc Thường xuyên]:[Số giờ Nghỉ bệnh]])*Employees[[#This Row],[Lương theo Giờ]]+Employees[[#This Row],[Số giờ Làm ngoài giờ]]*Employees[[#This Row],[Mức phí Làm ngoài giờ]]","v":2595871200},{"$f":"Employees[[#This Row],[Lương Gộp]]*Employees[[#This Row],[Tổng số Tiền thuế giữ lại]] + Employees[[#This Row],[Tổng Khấu trừ Thường xuyên]]","v":987780991.60000014},47840,{"$f":"Employees[[#This Row],[Lương Gộp]]-Employees[[#This Row],[Thuế và Khấu trừ]]-Employees[[#This Row],[Các Khấu trừ khác]]","v":1608042368.3999999},null,31200,1,2,2.3E-2,0.28000000000000003,6.3E-2,1.4500000000000001E-2,{"$f":"SUM(Employees[[#This Row],[Thuế Tiểu bang]:[Thuế Chăm sóc sức khỏe]])","v":0.38050000000000006},52000,null,{"$f":"SUM(Employees[[#This Row],[Khấu trừ Bảo hiểm]:[Khấu trừ Thường xuyên Khác]])","v":52000}]
[null,"Tổng số",{"$f":"SUBTOTAL(103,Employees[Tên Nhân viên])","v":9},{"$f":"SUBTOTAL(109,Employees[Số Giờ Làm việc Thường xuyên])","v":771680},{"$f":"SUBTOTAL(109,Employees[Số giờ Nghỉ phép])","v":24},{"$f":"SUBTOTAL(109,Employees[Số giờ Nghỉ bệnh])","v":6},{"$f":"SUBTOTAL(109,Employees[Số giờ Làm ngoài giờ])","v":3},null,{"$f":"SUBTOTAL(109,Employees[Lương Gộp])","v":19997538080},{"$f":"SUBTOTAL(109,Employees[Thuế và Khấu trừ])","v":7609714279.4400005},{"$f":"SUBTOTAL(109,Employees[Các Khấu trừ khác])","v":245440},{"$f":"SUBTOTAL(109,Employees[Lương Thực nhận])","v":12387578360.559999},null,null,null,null,null,null,null,null,null,{"$f":"SUBTOTAL(109,Employees[Khấu trừ Bảo hiểm])","v":297440},{"$f":"SUBTOTAL(109,Employees[Khấu trừ Thường xuyên Khác])","v":353600},{"$f":"SUBTOTAL(109,Employees[Tổng Khấu trừ Thường xuyên])","v":651040}]

{"sheet":"stubs_template","index":1,"n_rows":47,"n_cols":13,"rows_kept":47,"cut":false,"hidden":true,"merged":[[38,11,38,12],[26,11,26,12],[14,11,14,12],[2,11,2,12],[2,3,2,4],[14,3,14,4],[26,3,26,4],[38,3,38,4],[2,7,2,8],[14,7,14,8],[26,7,26,8],[38,7,38,8]]}
[]
[null,null,{"$f":"CompanyName","v":"CÔNG VIỆC MẠO HIÊM"}]
[null,null,"GIAI ĐOẠN",{"$f":"PeriodEnding","v":41372},null,null,"TÊN",{"$f":"IFERROR(INDEX(Employees[Tên Nhân viên],Stub),\"\")","v":"Tony Smith"},null,null,"ID NHÂN VIÊN",{"$f":"IFERROR(INDEX(Employees[ID],Stub),\"\")","v":1001}]
[null,null,"Tình trạng Thuế",null,{"$f":"IFERROR(INDEX(Employees[Tình trạng Thuế],Stub),\"\")","v":1},null,"Phụ cấp Liên bang (Từ W-4)",null,{"$f":"IFERROR(INDEX(Employees[Phụ cấp Liên bang],Stub),\"\")","v":4},null,"Số giờ Đã làm",null,{"$f":"IFERROR(INDEX(Employees[Số Giờ Làm việc Thường xuyên],Stub),\"\")","v":104000}]
[null,null,"Mức phí Theo giờ",null,{"$f":"IFERROR(INDEX(Employees[Lương theo Giờ],Stub),\"\")","v":20800},null,"Mức phí Làm ngoài giờ",null,{"$f":"IFERROR(INDEX(Employees[Mức phí Làm ngoài giờ],Stub),\"\")","v":0},null,"Số giờ Nghỉ bệnh",null,{"$f":"IFERROR(INDEX(Employees[Số giờ Nghỉ bệnh],Stub),\"\")","v":1}]
[null,null,"Thuế An sinh Xã hội",null,{"$f":"IFERROR(INDEX(Employees[Thuế An sinh Xã hội],Stub)  *  INDEX(Employees[Lương Gộp],Stub),\"\")","v":136289462.40000001},null,"Thuế Thu nhập Liên bang ",null,{"$f":"IFERROR(INDEX(Employees[Thuế Thu nhập Liên bang],Stub)  *  INDEX(Employees[Lương Gộp],Stub),\"\")","v":605730944},null,"Số giờ Nghỉ phép",null,{"$f":"IFERROR(INDEX(Employees[Số giờ Nghỉ phép],Stub),\"\")","v":5}]
[null,null,"Thuế Chương trình chăm sóc sức khỏe ",null,{"$f":"IFERROR(INDEX(Employees[Thuế Chăm sóc sức khỏe],Stub)  *  INDEX(Employees[Lương Gộp],Stub),\"\")","v":31368209.600000001},null,"Thuế Tiểu bang ",null,{"$f":"IFERROR(INDEX(Employees[Thuế Tiểu bang],Stub)  *  INDEX(Employees[Lương Gộp],Stub),\"\")","v":49756470.399999999},null,"Số giờ Làm ngoài giờ",null,{"$f":"IFERROR(INDEX(Employees[Số giờ Làm ngoài giờ],Stub),\"\")","v":0}]
[null,null,"Khấu trừ Bảo hiểm",null,{"$f":"IFERROR(INDEX(Employees[Khấu trừ Bảo hiểm],Stub),\"\")","v":41600},null,"Khấu trừ Thường xuyên Khác",null,{"$f":"IFERROR(INDEX(Employees[Khấu trừ Thường xuyên Khác],Stub),\"\")","v":83200},null,"Lương Gộp",null,{"$f":"IFERROR(INDEX(Employees[Lương Gộp],Stub),\"\")","v":2163324800}]
[null,null,"Tổng số Thuế và",null,{"$f":"IFERROR(INDEX(Employees[Thuế và Khấu trừ],Stub),\"\")","v":823269886.4000001},null,"Khấu trừ Khác",null,{"$f":"IFERROR(INDEX(Employees[Các Khấu trừ khác],Stub),\"\")","v":41600},null,"Tổng số Thuế và Khấu trừ ",null,{"$f":"IFERROR(INDEX(Employees[Thuế và Khấu trừ],Stub)  +  INDEX(Employees[Các Khấu trừ khác],Stub),\"\")","v":823311486.4000001}]
[null,null,"Khấu trừ Thường xuyên "]
[null,null,null,null,null,null,null,null,null,null,"LƯƠNG THỰC NHẬN",null,{"$f":"IFERROR(INDEX(Employees[Lương Thực nhận],Stub),\"\")","v":1340013313.5999999}]
[]
[]
[null,null,{"$f":"CompanyName","v":"CÔNG VIỆC MẠO HIÊM"}]
[null,null,"GIAI ĐOẠN",{"$f":"PeriodEnding","v":41372},null,null,"TÊN",{"$f":"IFERROR(INDEX(Employees[Tên Nhân viên],Stub),\"\")","v":"David Jones"},null,null,"ID NHÂN VIÊN",{"$f":"IFERROR(INDEX(Employees[ID],Stub),\"\")","v":1002}]
[null,null,"Tình trạng Thuế",null,{"$f":"IFERROR(INDEX(Employees[Tình trạng Thuế],Stub),\"\")","v":1},null,"Phụ cấp Liên bang (Từ W-4)",null,{"$f":"IFERROR(INDEX(Employees[Phụ cấp Liên bang],Stub),\"\")","v":1},null,"Số giờ Đã làm",null,{"$f":"IFERROR(INDEX(Employees[Số Giờ Làm việc Thường xuyên],Stub),\"\")","v":83200}]
[null,null,"Mức phí Theo giờ",null,{"$f":"IFERROR(INDEX(Employees[Lương theo Giờ],Stub),\"\")","v":16640},null,"Mức phí Làm ngoài giờ",null,{"$f":"IFERROR(INDEX(Employees[Mức phí Làm ngoài giờ],Stub),\"\")","v":0},null,"Số giờ Nghỉ bệnh",null,{"$f":"IFERROR(INDEX(Employees[Số giờ Nghỉ bệnh],Stub),\"\")","v":0}]
[null,null,"Thuế An sinh Xã hội",null,{"$f":"IFERROR(INDEX(Employees[Thuế An sinh Xã hội],Stub)  *  INDEX(Employees[Lương Gộp],Stub),\"\")","v":87220224},null,"Thuế Thu nhập Liên bang ",null,{"$f":"IFERROR(INDEX(Employees[Thuế Thu nhập Liên bang],Stub)  *  INDEX(Employees[Lương Gộp],Stub),\"\")","v":387645440.00000006},null,"Số giờ Nghỉ phép",null,{"$f":"IFERROR(INDEX(Employees[Số giờ Nghỉ phép],Stub),\"\")","v":0}]
[null,null,"Thuế Chương trình chăm sóc sức khỏe ",null,{"$f":"IFERROR(INDEX(Employees[Thuế Chăm sóc sức khỏe],Stub)  *  INDEX(Employees[Lương Gộp],Stub),\"\")","v":20074496},null,"Thuế Tiểu bang ",null,{"$f":"IFERROR(INDEX(Employees[Thuế Tiểu bang],Stub)  *  INDEX(Employees[Lương Gộp],Stub),\"\")","v":31842304},null,"Số giờ Làm ngoài giờ",null,{"$f":"IFERROR(INDEX(Employees[Số giờ Làm ngoài giờ],Stub),\"\")","v":0}]
[null,null,"Khấu trừ Bảo hiểm",null,{"$f":"IFERROR(INDEX(Employees[Khấu trừ Bảo hiểm],Stub),\"\")","v":0},null,"Khấu trừ Thường xuyên Khác",null,{"$f":"IFERROR(INDEX(Employees[Khấu trừ Thường xuyên Khác],Stub),\"\")","v":20800},null,"Lương Gộp",null,{"$f":"IFERROR(INDEX(Employees[Lương Gộp],Stub),\"\")","v":1384448000}]
[null,null,"Tổng số Thuế và",null,{"$f":"IFERROR(INDEX(Employees[Thuế và Khấu trừ],Stub),\"\")","v":526803264.00000006},null,"Khấu trừ Khác",null,{"$f":"IFERROR(INDEX(Employees[Các Khấu trừ khác],Stub),\"\")","v":0},null,"Tổng số Thuế và Khấu trừ ",null,{"$f":"IFERROR(INDEX(Employees[Thuế và Khấu trừ],Stub)  +  INDEX(Employees[Các Khấu trừ khác],Stub),\"\")","v":526803264.00000006}]
[null,null,"Khấu trừ Thường xuyên "]
[null,null,null,null,null,null,null,null,null,null,"LƯƠNG THỰC NHẬN",null,{"$f":"IFERROR(INDEX(Employees[Lương Thực nhận],Stub),\"\")","v":857644736}]
[]
[]
[null,null,{"$f":"CompanyName","v":"CÔNG VIỆC MẠO HIÊM"}]
[null,null,"GIAI ĐOẠN",{"$f":"PeriodEnding","v":41372},null,null,"TÊN",{"$f":"IFERROR(INDEX(Employees[Tên Nhân viên],Stub),\"\")","v":"Denise Smith"},null,null,"ID NHÂN VIÊN",{"$f":"IFERROR(INDEX(Employees[ID],Stub),\"\")","v":1003}]
[null,null,"Tình trạng Thuế",null,{"$f":"IFERROR(INDEX(Employees[Tình trạng Thuế],Stub),\"\")","v":1},null,"Phụ cấp Liên bang (Từ W-4)",null,{"$f":"IFERROR(INDEX(Employees[Phụ cấp Liên bang],Stub),\"\")","v":3},null,"Số giờ Đã làm",null,{"$f":"IFERROR(INDEX(Employees[Số Giờ Làm việc Thường xuyên],Stub),\"\")","v":72800}]
[null,null,"Mức phí Theo giờ",null,{"$f":"IFERROR(INDEX(Employees[Lương theo Giờ],Stub),\"\")","v":29120},null,"Mức phí Làm ngoài giờ",null,{"$f":"IFERROR(INDEX(Employees[Mức phí Làm ngoài giờ],Stub),\"\")","v":0},null,"Số giờ Nghỉ bệnh",null,{"$f":"IFERROR(INDEX(Employees[Số giờ Nghỉ bệnh],Stub),\"\")","v":0}]
[null,null,"Thuế An sinh Xã hội",null,{"$f":"IFERROR(INDEX(Employees[Thuế An sinh Xã hội],Stub)  *  INDEX(Employees[Lương Gộp],Stub),\"\")","v":133561471.68000001},null,"Thuế Thu nhập Liên bang ",null,{"$f":"IFERROR(INDEX(Employees[Thuế Thu nhập Liên bang],Stub)  *  INDEX(Employees[Lương Gộp],Stub),\"\")","v":593606540.80000007},null,"Số giờ Nghỉ phép",null,{"$f":"IFERROR(INDEX(Employees[Số giờ Nghỉ phép],Stub),\"\")","v":3}]
[null,null,"Thuế Chương trình chăm sóc sức khỏe ",null,{"$f":"IFERROR(INDEX(Employees[Thuế Chăm sóc sức khỏe],Stub)  *  INDEX(Employees[Lương Gộp],Stub),\"\")","v":30740338.720000003},null,"Thuế Tiểu bang ",null,{"$f":"IFERROR(INDEX(Employees[Thuế Tiểu bang],Stub)  *  INDEX(Employees[Lương Gộp],Stub),\"\")","v":48760537.280000001},null,"Số giờ Làm ngoài giờ",null,{"$f":"IFERROR(INDEX(Employees[Số giờ Làm ngoài giờ],Stub),\"\")","v":0}]
[null,null,"Khấu trừ Bảo hiểm",null,{"$f":"IFERROR(INDEX(Employees[Khấu trừ Bảo hiểm],Stub),\"\")","v":37440},null,"Khấu trừ Thường xuyên Khác",null,{"$f":"IFERROR(INDEX(Employees[Khấu trừ Thường xuyên Khác],Stub),\"\")","v":41600},null,"Lương Gộp",null,{"$f":"IFERROR(INDEX(Employees[Lương Gộp],Stub),\"\")","v":2120023360}]
[null,null,"Tổng số Thuế và",null,{"$f":"IFERROR(INDEX(Employees[Thuế và Khấu trừ],Stub),\"\")","v":806747928.48000014},null,"Khấu trừ Khác",null,{"$f":"IFERROR(INDEX(Employees[Các Khấu trừ khác],Stub),\"\")","v":0},null,"Tổng số Thuế và Khấu trừ ",null,{"$f":"IFERROR(INDEX(Employees[Thuế và Khấu trừ],Stub)  +  INDEX(Employees[Các Khấu trừ khác],Stub),\"\")","v":806747928.48000014}]
[null,null,"Khấu trừ Thường xuyên "]
[null,null,null,null,null,null,null,null,null,null,"LƯƠNG THỰC NHẬN",null,{"$f":"IFERROR(INDEX(Employees[Lương Thực nhận],Stub),\"\")","v":1313275431.52}]
[]
[]
[null,null,{"$f":"CompanyName","v":"CÔNG VIỆC MẠO HIÊM"}]
[null,null,"GIAI ĐOẠN",{"$f":"PeriodEnding","v":41372},null,null,"TÊN",{"$f":"IFERROR(INDEX(Employees[Tên Nhân viên],Stub),\"\")","v":"Sebastien Motte"},null,null,"ID NHÂN VIÊN",{"$f":"IFERROR(INDEX(Employees[ID],Stub),\"\")","v":1008}]
[null,null,"Tình trạng Thuế",null,{"$f":"IFERROR(INDEX(Employees[Tình trạng Thuế],Stub),\"\")","v":1},null,"Phụ cấp Liên bang (Từ W-4)",null,{"$f":"IFERROR(INDEX(Employees[Phụ cấp Liên bang],Stub),\"\")","v":0},null,"Số giờ Đã làm",null,{"$f":"IFERROR(INDEX(Employees[Số Giờ Làm việc Thường xuyên],Stub),\"\")","v":104000}]
[null,null,"Mức phí Theo giờ",null,{"$f":"IFERROR(INDEX(Employees[Lương theo Giờ],Stub),\"\")","v":41600},null,"Mức phí Làm ngoài giờ",null,{"$f":"IFERROR(INDEX(Employees[Mức phí Làm ngoài giờ],Stub),\"\")","v":0},null,"Số giờ Nghỉ bệnh",null,{"$f":"IFERROR(INDEX(Employees[Số giờ Nghỉ bệnh],Stub),\"\")","v":1}]
[null,null,"Thuế An sinh Xã hội",null,{"$f":"IFERROR(INDEX(Employees[Thuế An sinh Xã hội],Stub)  *  INDEX(Employees[Lương Gộp],Stub),\"\")","v":272578924.80000001},null,"Thuế Thu nhập Liên bang ",null,{"$f":"IFERROR(INDEX(Employees[Thuế Thu nhập Liên bang],Stub)  *  INDEX(Employees[Lương Gộp],Stub),\"\")","v":1211461888},null,"Số giờ Nghỉ phép",null,{"$f":"IFERROR(INDEX(Employees[Số giờ Nghỉ phép],Stub),\"\")","v":5}]
[null,null,"Thuế Chương trình chăm sóc sức khỏe ",null,{"$f":"IFERROR(INDEX(Employees[Thuế Chăm sóc sức khỏe],Stub)  *  INDEX(Employees[Lương Gộp],Stub),\"\")","v":62736419.200000003},null,"Thuế Tiểu bang ",null,{"$f":"IFERROR(INDEX(Employees[Thuế Tiểu bang],Stub)  *  INDEX(Employees[Lương Gộp],Stub),\"\")","v":99512940.799999997},null,"Số giờ Làm ngoài giờ",null,{"$f":"IFERROR(INDEX(Employees[Số giờ Làm ngoài giờ],Stub),\"\")","v":0}]
[null,null,"Khấu trừ Bảo hiểm",null,{"$f":"IFERROR(INDEX(Employees[Khấu trừ Bảo hiểm],Stub),\"\")","v":31200},null,"Khấu trừ Thường xuyên Khác",null,{"$f":"IFERROR(INDEX(Employees[Khấu trừ Thường xuyên Khác],Stub),\"\")","v":0},null,"Lương Gộp",null,{"$f":"IFERROR(INDEX(Employees[Lương Gộp],Stub),\"\")","v":4326649600}]
[null,null,"Tổng số Thuế và",null,{"$f":"IFERROR(INDEX(Employees[Thuế và Khấu trừ],Stub),\"\")","v":1646321372.8000002},null,"Khấu trừ Khác",null,{"$f":"IFERROR(INDEX(Employees[Các Khấu trừ khác],Stub),\"\")","v":0},null,"Tổng số Thuế và Khấu trừ ",null,{"$f":"IFERROR(INDEX(Employees[Thuế và Khấu trừ],Stub)  +  INDEX(Employees[Các Khấu trừ khác],Stub),\"\")","v":1646321372.8000002}]
[null,null,"Khấu trừ Thường xuyên "]
[null,null,null,null,null,null,null,null,null,null,"LƯƠNG THỰC NHẬN",null,{"$f":"IFERROR(INDEX(Employees[Lương Thực nhận],Stub),\"\")","v":2680328227.1999998}]